[Event "Late-Titled-Tuesday-Blitz-August-29-2023"]
[Site "Chess.com"]
[Date "2023.08.29"]
[Round "7"]
[White "Fuzesabonyilaci"]
[Black "ritanovikova"]
[Result "1-0"]
[WhiteElo "2407"]
[BlackElo "2159"]
[TimeControl "180+1"]
[EndTime "15:18:01 PDT"]
[Termination "Fuzesabonyilaci won by checkmate"]

1. d4 {[%clk 0:03:00.9]} 1... d5 {[%clk 0:02:58.6]} 2. c4 {[%clk 0:02:58]} 2...
e6 {[%clk 0:02:55.3]} 3. Nc3 {[%clk 0:02:56.9]} 3... Nf6 {[%clk 0:02:54.5]} 4.
Bg5 {[%clk 0:02:54.2]} 4... Be7 {[%clk 0:02:53.2]} 5. Nf3 {[%clk 0:02:54.4]}
5... c6 {[%clk 0:02:52.6]} 6. e3 {[%clk 0:02:53.8]} 6... O-O {[%clk 0:02:51.6]}
7. Bd3 {[%clk 0:02:54]} 7... Nbd7 {[%clk 0:02:46.4]} 8. O-O {[%clk 0:02:52]}
8... h6 {[%clk 0:02:44.9]} 9. Bh4 {[%clk 0:02:50.5]} 9... Re8 {[%clk 0:02:35.5]}
10. Re1 {[%clk 0:02:49.2]} 10... a6 {[%clk 0:02:22.4]} 11. c5 {[%clk 0:02:39.8]}
11... Qc7 {[%clk 0:02:14.7]} 12. Bg3 {[%clk 0:02:37.9]} 12... Qd8 {[%clk
0:02:10.2]} 13. Nd2 {[%clk 0:02:33]} 13... Nh7 {[%clk 0:01:39.1]} 14. b4 {[%clk
0:02:32.3]} 14... Nhf8 {[%clk 0:01:37.5]} 15. a4 {[%clk 0:02:31.3]} 15... a5
{[%clk 0:01:28.7]} 16. b5 {[%clk 0:02:30.9]} 16... e5 {[%clk 0:01:26.8]} 17. Rb1
{[%clk 0:02:05.5]} 17... Bf6 {[%clk 0:01:16.3]} 18. Nb3 {[%clk 0:01:57.7]} 18...
Ne6 {[%clk 0:01:06.5]} 19. Bf5 {[%clk 0:01:55.9]} 19... exd4 {[%clk 0:01:04.9]}
20. exd4 {[%clk 0:01:55.3]} 20... Ndf8 {[%clk 0:00:52.7]} 21. Qd3 {[%clk
0:01:52.4]} 21... g6 {[%clk 0:00:44]} 22. Bh3 {[%clk 0:01:49.4]} 22... Ng5
{[%clk 0:00:41.2]} 23. Bxc8 {[%clk 0:01:40.4]} 23... Rxc8 {[%clk 0:00:42.1]} 24.
bxc6 {[%clk 0:01:37.9]} 24... bxc6 {[%clk 0:00:40.7]} 25. Rxe8 {[%clk
0:01:35.4]} 25... Qxe8 {[%clk 0:00:39.8]} 26. Nxa5 {[%clk 0:01:36]} 26... Ra8
{[%clk 0:00:37.7]} 27. Nb7 {[%clk 0:01:28.8]} 27... Nfe6 {[%clk 0:00:30.7]} 28.
Nd6 {[%clk 0:01:24.6]} 28... Qd7 {[%clk 0:00:30.8]} 29. Rb4 {[%clk 0:01:21.5]}
29... Qa7 {[%clk 0:00:18.9]} 30. h4 {[%clk 0:01:21.6]} 30... Nh7 {[%clk
0:00:17.7]} 31. Rb7 {[%clk 0:01:22.2]} 31... Qa6 {[%clk 0:00:14.7]} 32. Qxa6
{[%clk 0:01:19.5]} 32... Rxa6 {[%clk 0:00:15.6]} 33. Rxf7 {[%clk 0:01:19.7]}
33... Bxd4 {[%clk 0:00:13]} 34. Re7 {[%clk 0:01:08.4]} 34... Nxc5 {[%clk
0:00:11.8]} 35. Ne2 {[%clk 0:01:03.5]} 35... Bf6 {[%clk 0:00:11.5]} 36. Re8+
{[%clk 0:00:59.7]} 36... Kg7 {[%clk 0:00:11.3]} 37. Rc8 {[%clk 0:00:54.9]} 37...
Nf8 {[%clk 0:00:10.2]} 38. Ne8+ {[%clk 0:00:51.4]} 38... Kf7 {[%clk 0:00:09.8]}
39. Nxf6 {[%clk 0:00:51.5]} 39... Kxf6 {[%clk 0:00:10.1]} 40. Rxf8+ {[%clk
0:00:51.5]} 40... Kg7 {[%clk 0:00:09.5]} 41. Rc8 {[%clk 0:00:48.3]} 41... Nxa4
{[%clk 0:00:10.2]} 42. Bd6 {[%clk 0:00:41]} 42... c5 {[%clk 0:00:09.7]} 43. Bxc5
{[%clk 0:00:41]} 43... Nxc5 {[%clk 0:00:07.5]} 44. Rxc5 {[%clk 0:00:41.9]} 44...
Ra1+ {[%clk 0:00:07.5]} 45. Kh2 {[%clk 0:00:41.3]} 45... Rd1 {[%clk 0:00:08.4]}
46. Kg3 {[%clk 0:00:39.8]} 46... d4 {[%clk 0:00:08.7]} 47. Rd5 {[%clk 0:00:39]}
47... d3 {[%clk 0:00:08.7]} 48. Nf4 {[%clk 0:00:39.6]} 48... d2 {[%clk
0:00:08.4]} 49. f3 {[%clk 0:00:38.9]} 49... Kf6 {[%clk 0:00:06.5]} 50. Kf2
{[%clk 0:00:34.7]} 50... g5 {[%clk 0:00:05.9]} 51. hxg5+ {[%clk 0:00:33.7]}
51... hxg5 {[%clk 0:00:06.8]} 52. Nh3 {[%clk 0:00:33.9]} 52... g4 {[%clk
0:00:06]} 53. fxg4 {[%clk 0:00:33.4]} 53... Ke6 {[%clk 0:00:05.4]} 54. Rd3
{[%clk 0:00:33.5]} 54... Ke5 {[%clk 0:00:05.7]} 55. Ke2 {[%clk 0:00:32.2]} 55...
Rg1 {[%clk 0:00:06]} 56. Rxd2 {[%clk 0:00:25.2]} 56... Rxg2+ {[%clk 0:00:05.9]}
57. Nf2 {[%clk 0:00:25.8]} 57... Kf4 {[%clk 0:00:05.2]} 58. Rd3 {[%clk
0:00:25.2]} 58... Kg5 {[%clk 0:00:04.5]} 59. Rd5+ {[%clk 0:00:19.6]} 59... Kf4
{[%clk 0:00:03.8]} 60. Rf5+ {[%clk 0:00:20.1]} 60... Kg3 {[%clk 0:00:02.5]} 61.
g5 {[%clk 0:00:19.1]} 61... Kh4 {[%clk 0:00:02.5]} 62. Kf3 {[%clk 0:00:12.2]}
62... Rxg5 {[%clk 0:00:03.3]} 63. Rf8 {[%clk 0:00:09.8]} 63... Ra5 {[%clk
0:00:03.2]} 64. Kf4 {[%clk 0:00:09]} 64... Ra4+ {[%clk 0:00:03.6]} 65. Ne4
{[%clk 0:00:09.3]} 65... Ra5 {[%clk 0:00:04.2]} 66. Rg8 {[%clk 0:00:07.9]} 66...
Rh5 {[%clk 0:00:05.1]} 67. Rg1 {[%clk 0:00:06.6]} 67... Rh6 {[%clk 0:00:03.9]}
68. Rh1# {[%clk 0:00:07]} 1-0

[Event "Late-Titled-Tuesday-Blitz-August-29-2023"]
[Site "Chess.com"]
[Date "2023.08.29"]
[Round "7"]
[White "whiteglovethief"]
[Black "AndreiITrifan"]
[Result "0-1"]
[WhiteElo "2457"]
[BlackElo "2584"]
[TimeControl "180+1"]
[EndTime "15:18:04 PDT"]
[Termination "AndreiITrifan won by resignation"]

1. d4 {[%clk 0:03:00.9]} 1... Nf6 {[%clk 0:02:59.3]} 2. c4 {[%clk 0:03:01]} 2...
e6 {[%clk 0:02:59]} 3. Nf3 {[%clk 0:03:00.2]} 3... b6 {[%clk 0:02:59.1]} 4. a3
{[%clk 0:02:58.6]} 4... Bb7 {[%clk 0:02:59]} 5. Nc3 {[%clk 0:02:58.9]} 5... d5
{[%clk 0:02:58.2]} 6. cxd5 {[%clk 0:02:58.6]} 6... Nxd5 {[%clk 0:02:59.1]} 7.
Qc2 {[%clk 0:02:58.2]} 7... Be7 {[%clk 0:02:56.3]} 8. e4 {[%clk 0:02:58.1]} 8...
Nxc3 {[%clk 0:02:56.6]} 9. bxc3 {[%clk 0:02:58.4]} 9... O-O {[%clk 0:02:56.9]}
10. Bd3 {[%clk 0:02:58.9]} 10... c5 {[%clk 0:02:56.6]} 11. O-O {[%clk
0:02:59.5]} 11... cxd4 {[%clk 0:02:54.4]} 12. cxd4 {[%clk 0:03:00.4]} 12... Nc6
{[%clk 0:02:54.7]} 13. Bb2 {[%clk 0:03:00.4]} 13... Rc8 {[%clk 0:02:54.5]} 14.
Qe2 {[%clk 0:03:00.3]} 14... Na5 {[%clk 0:02:52.7]} 15. Rad1 {[%clk 0:02:56.9]}
15... Qc7 {[%clk 0:02:45.6]} 16. h4 {[%clk 0:02:52.4]} 16... Qf4 {[%clk
0:02:40.1]} 17. g3 {[%clk 0:02:49.8]} 17... Qg4 {[%clk 0:02:37.3]} 18. Qe3
{[%clk 0:02:46.6]} 18... f5 {[%clk 0:02:26.7]} 19. Ne5 {[%clk 0:02:45.3]} 19...
Qh3 {[%clk 0:02:26.2]} 20. d5 {[%clk 0:02:39.7]} 20... Bc5 {[%clk 0:02:23.5]}
21. Bd4 {[%clk 0:02:34.4]} 21... Bxd4 {[%clk 0:02:17.7]} 22. Qxd4 {[%clk
0:02:35.3]} 22... f4 {[%clk 0:02:18.1]} 23. gxf4 {[%clk 0:02:12.6]} 23... Rxf4
{[%clk 0:02:19]} 24. Qe3 {[%clk 0:02:09.6]} 24... Qxh4 {[%clk 0:02:07.5]} 25.
Qg3 {[%clk 0:02:08.9]} 25... Qf6 {[%clk 0:01:30.2]} 26. Ng4 {[%clk 0:01:59.1]}
26... Qg5 {[%clk 0:01:25.3]} 27. Ne3 {[%clk 0:01:51.4]} 27... Qxg3+ {[%clk
0:01:18.9]} 28. fxg3 {[%clk 0:01:52.3]} 28... Rxf1+ {[%clk 0:01:18.4]} 29. Bxf1
{[%clk 0:01:52.7]} 29... exd5 {[%clk 0:01:14.5]} 30. exd5 {[%clk 0:01:53.6]}
30... Rd8 {[%clk 0:01:10.8]} 31. Bh3 {[%clk 0:01:52.6]} 31... Bc8 {[%clk
0:00:54]} 32. Bxc8 {[%clk 0:01:48.5]} 32... Rxc8 {[%clk 0:00:54.9]} 33. Nf5
{[%clk 0:01:48.6]} 33... Rd8 {[%clk 0:00:50.8]} 34. Kf2 {[%clk 0:01:48]} 34...
Kf7 {[%clk 0:00:43.3]} 35. Kf3 {[%clk 0:01:45.6]} 35... g6 {[%clk 0:00:40.1]}
36. Ne3 {[%clk 0:01:41.7]} 36... Nb7 {[%clk 0:00:39.6]} 37. Kf4 {[%clk
0:01:34.3]} 37... Nd6 {[%clk 0:00:36.2]} 38. Ke5 {[%clk 0:01:34]} 38... Ke7
{[%clk 0:00:33.6]} 39. g4 {[%clk 0:01:31.3]} 39... h5 {[%clk 0:00:24.8]} 40. Rh1
{[%clk 0:01:24.1]} 40... Rh8 {[%clk 0:00:22.7]} 41. g5 {[%clk 0:01:23.1]} 41...
h4 {[%clk 0:00:21.1]} 42. Rh3 {[%clk 0:01:18.4]} 42... Rh5 {[%clk 0:00:20.2]}
43. Kf4 {[%clk 0:01:14.9]} 43... Nf7 {[%clk 0:00:20.7]} 44. Ng4 {[%clk
0:01:07.1]} 44... Rxg5 {[%clk 0:00:19.8]} 45. Rxh4 {[%clk 0:01:04.1]} 45... Rxd5
{[%clk 0:00:19.1]} 46. Rh7 {[%clk 0:01:03.5]} 46... Rh5 {[%clk 0:00:19.7]} 47.
Rg7 {[%clk 0:00:58.5]} 47... Rf5+ {[%clk 0:00:19.7]} 48. Kg3 {[%clk 0:00:57.2]}
48... Rg5 {[%clk 0:00:19.9]} 49. Kf4 {[%clk 0:00:56]} 49... Ra5 {[%clk
0:00:18.9]} 50. Nh6 {[%clk 0:00:49]} 50... Ke6 {[%clk 0:00:12.6]} 51. Rxf7
{[%clk 0:00:46.2]} 51... Rxa3 {[%clk 0:00:12.4]} 52. Rb7 {[%clk 0:00:44]} 52...
Kd5 {[%clk 0:00:11.1]} 53. Ng4 {[%clk 0:00:39.4]} 53... Kc6 {[%clk 0:00:10.6]}
54. Rg7 {[%clk 0:00:38.3]} 54... b5 {[%clk 0:00:10.5]} 55. Rxg6+ {[%clk
0:00:39.2]} 55... Kc5 {[%clk 0:00:10.7]} 56. Ne5 {[%clk 0:00:39.6]} 56... b4
{[%clk 0:00:10.2]} 57. Nd7+ {[%clk 0:00:35.3]} 57... Kd5 {[%clk 0:00:08]} 58.
Rg5+ {[%clk 0:00:33.9]} 58... Kc4 {[%clk 0:00:08.6]} 59. Rc5+ {[%clk 0:00:32.6]}
59... Kd4 {[%clk 0:00:09.2]} 60. Rb5 {[%clk 0:00:32.1]} 60... a5 {[%clk
0:00:09.8]} 61. Ne5 {[%clk 0:00:30.7]} 61... b3 {[%clk 0:00:09.3]} 62. Nc6+
{[%clk 0:00:29.4]} 62... Kc4 {[%clk 0:00:08.8]} 63. Rxa5 {[%clk 0:00:29.1]}
63... Ra2 {[%clk 0:00:08.6]} 64. Ke3 {[%clk 0:00:25.6]} 64... b2 {[%clk
0:00:07.9]} 65. Rxa2 {[%clk 0:00:24.6]} 65... b1=Q {[%clk 0:00:08]} 66. Re2
{[%clk 0:00:22.8]} 66... Qb6+ {[%clk 0:00:08.3]} 67. Kd2 {[%clk 0:00:22.9]}
67... Qxc6 {[%clk 0:00:08]} 68. Re3 {[%clk 0:00:23.8]} 68... Qh6 {[%clk
0:00:07.7]} 69. Ke2 {[%clk 0:00:23.8]} 69... Kd4 {[%clk 0:00:08.6]} 70. Rd3+
{[%clk 0:00:23.5]} 70... Ke4 {[%clk 0:00:09.2]} 71. Ra3 {[%clk 0:00:23.2]} 71...
Qh2+ {[%clk 0:00:09.7]} 72. Kf1 {[%clk 0:00:23]} 72... Qh1+ {[%clk 0:00:09.4]}
73. Kf2 {[%clk 0:00:22.7]} 73... Qh4+ {[%clk 0:00:09.2]} 74. Kf1 {[%clk
0:00:22.3]} 74... Qd8 {[%clk 0:00:09.6]} 75. Rh3 {[%clk 0:00:20.1]} 75... Qd1+
{[%clk 0:00:09.1]} 76. Kg2 {[%clk 0:00:20.3]} 76... Qc2+ {[%clk 0:00:10]} 77.
Kf1 {[%clk 0:00:20.1]} 77... Kf5 {[%clk 0:00:10.9]} 78. Rg3 {[%clk 0:00:19.5]}
78... Kf4 {[%clk 0:00:11.2]} 79. Rh3 {[%clk 0:00:19.5]} 79... Qd1+ {[%clk
0:00:11.1]} 80. Kg2 {[%clk 0:00:19.9]} 80... Qe2+ {[%clk 0:00:11.5]} 81. Kg1
{[%clk 0:00:18.3]} 81... Kg4 {[%clk 0:00:11.9]} 82. Ra3 {[%clk 0:00:17.1]} 82...
Qd1+ {[%clk 0:00:11.4]} 83. Kf2 {[%clk 0:00:17]} 83... Qd2+ {[%clk 0:00:11.9]}
84. Kg1 {[%clk 0:00:16.7]} 84... Qc1+ {[%clk 0:00:12.8]} 0-1

[Event "Late-Titled-Tuesday-Blitz-August-29-2023"]
[Site "Chess.com"]
[Date "2023.08.29"]
[Round "7"]
[White "Athanasios2"]
[Black "Alphafischer2019"]
[Result "1-0"]
[WhiteElo "2731"]
[BlackElo "2528"]
[TimeControl "180+1"]
[EndTime "15:18:07 PDT"]
[Termination "Athanasios2 won by checkmate"]

1. Nf3 {[%clk 0:03:00.9]} 1... c5 {[%clk 0:02:58]} 2. c4 {[%clk 0:03:01.2]} 2...
g6 {[%clk 0:02:55.9]} 3. g3 {[%clk 0:03:01.3]} 3... Bg7 {[%clk 0:02:55.9]} 4.
Bg2 {[%clk 0:03:01.9]} 4... Nc6 {[%clk 0:02:56.5]} 5. O-O {[%clk 0:03:02.3]}
5... e6 {[%clk 0:02:56.3]} 6. Nc3 {[%clk 0:03:02.1]} 6... Nge7 {[%clk
0:02:56.3]} 7. b3 {[%clk 0:02:55.4]} 7... d5 {[%clk 0:02:54.9]} 8. cxd5 {[%clk
0:02:55.4]} 8... exd5 {[%clk 0:02:53.8]} 9. Bb2 {[%clk 0:02:55.9]} 9... O-O
{[%clk 0:02:54.2]} 10. d3 {[%clk 0:02:55.7]} 10... Re8 {[%clk 0:02:50.7]} 11.
Rc1 {[%clk 0:02:54.9]} 11... b6 {[%clk 0:02:49.1]} 12. e3 {[%clk 0:02:53.4]}
12... Ba6 {[%clk 0:02:47.2]} 13. Na4 {[%clk 0:02:50]} 13... Bf8 {[%clk
0:02:29.5]} 14. a3 {[%clk 0:02:42.6]} 14... Rc8 {[%clk 0:02:28.3]} 15. Qd2
{[%clk 0:02:40.7]} 15... Nf5 {[%clk 0:02:20.9]} 16. Rfd1 {[%clk 0:02:38.3]}
16... h5 {[%clk 0:02:14.8]} 17. h4 {[%clk 0:02:35]} 17... Bh6 {[%clk 0:02:13.7]}
18. d4 {[%clk 0:02:20.8]} 18... Nxe3 {[%clk 0:02:05.1]} 19. dxc5 {[%clk
0:02:08.9]} 19... Nxd1 {[%clk 0:01:38.8]} 20. Qxh6 {[%clk 0:02:04.6]} 20... Nxb2
{[%clk 0:01:39.4]} 21. Nxb2 {[%clk 0:01:55.8]} 21... Qf6 {[%clk 0:01:37.9]} 22.
Na4 {[%clk 0:01:52.5]} 22... Ne5 {[%clk 0:01:29.6]} 23. Nxe5 {[%clk 0:01:43.5]}
23... Rxe5 {[%clk 0:01:22]} 24. b4 {[%clk 0:01:43.7]} 24... Bb5 {[%clk
0:01:12.9]} 25. Nc3 {[%clk 0:01:42.4]} 25... Bc4 {[%clk 0:01:12.6]} 26. cxb6
{[%clk 0:01:36.8]} 26... axb6 {[%clk 0:01:13.5]} 27. Nxd5 {[%clk 0:01:30.2]}
27... Qd8 {[%clk 0:01:04.3]} 28. Ne3 {[%clk 0:01:16.2]} 28... Bb3 {[%clk
0:00:33.9]} 29. Rf1 {[%clk 0:01:06.2]} 29... Qd4 {[%clk 0:00:28.1]} 30. Rb1
{[%clk 0:00:49.6]} 30... Ba4 {[%clk 0:00:19.3]} 31. Bf3 {[%clk 0:00:33.4]} 31...
Qd2 {[%clk 0:00:12.9]} 32. Qf4 {[%clk 0:00:28.5]} 32... Rc1+ {[%clk 0:00:12.2]}
33. Rxc1 {[%clk 0:00:28.8]} 33... Qxc1+ {[%clk 0:00:13.1]} 34. Kh2 {[%clk
0:00:27]} 34... Re8 {[%clk 0:00:13.2]} 35. Bd5 {[%clk 0:00:22.2]} 35... Rf8
{[%clk 0:00:07.5]} 36. Qf6 {[%clk 0:00:22]} 36... Qb1 {[%clk 0:00:06]} 37. Qxb6
{[%clk 0:00:20.2]} 37... Bd7 {[%clk 0:00:03.6]} 38. Qf6 {[%clk 0:00:19.8]} 38...
Bg4 {[%clk 0:00:03.2]} 39. b5 {[%clk 0:00:14.3]} 39... Be2 {[%clk 0:00:03.3]}
40. b6 {[%clk 0:00:13.8]} 40... Ba6 {[%clk 0:00:04]} 41. a4 {[%clk 0:00:12.4]}
41... Bc8 {[%clk 0:00:03.7]} 42. a5 {[%clk 0:00:11.9]} 42... Kh7 {[%clk
0:00:04.1]} 43. Qe7 {[%clk 0:00:10.2]} 43... Kg8 {[%clk 0:00:03.7]} 44. b7
{[%clk 0:00:10.1]} 44... Be6 {[%clk 0:00:02.8]} 45. Bxe6 {[%clk 0:00:07.9]}
45... fxe6 {[%clk 0:00:03.7]} 46. Qxe6+ {[%clk 0:00:08.8]} 46... Kg7 {[%clk
0:00:04.3]} 47. Qe5+ {[%clk 0:00:07.1]} 47... Kh7 {[%clk 0:00:02.7]} 48. Qe7+
{[%clk 0:00:06.5]} 48... Kg8 {[%clk 0:00:03.1]} 49. Kg2 {[%clk 0:00:07.1]} 49...
Qb3 {[%clk 0:00:02]} 50. a6 {[%clk 0:00:06]} 50... Qb6 {[%clk 0:00:01.9]} 51.
Qe4 {[%clk 0:00:04.8]} 51... Qxa6 {[%clk 0:00:02.1]} 52. Nd5 {[%clk 0:00:05.1]}
52... Qxb7 {[%clk 0:00:01.9]} 53. Nf6+ {[%clk 0:00:04.5]} 53... Rxf6 {[%clk
0:00:02.7]} 54. Qxb7 {[%clk 0:00:05]} 54... Rf7 {[%clk 0:00:03.6]} 55. Qc8+
{[%clk 0:00:05.2]} 55... Kg7 {[%clk 0:00:04.2]} 56. Qc2 {[%clk 0:00:05.8]} 56...
Rf6 {[%clk 0:00:04.9]} 57. f3 {[%clk 0:00:06.4]} 57... Rf7 {[%clk 0:00:05.8]}
58. g4 {[%clk 0:00:07]} 58... Re7 {[%clk 0:00:06.6]} 59. gxh5 {[%clk 0:00:06.7]}
59... gxh5 {[%clk 0:00:07.5]} 60. Qf5 {[%clk 0:00:07.3]} 60... Rf7 {[%clk
0:00:06.4]} 61. Qxh5 {[%clk 0:00:07.4]} 61... Rf6 {[%clk 0:00:07.3]} 62. Kg3
{[%clk 0:00:07.3]} 62... Rg6+ {[%clk 0:00:08.2]} 63. Kf4 {[%clk 0:00:08]} 63...
Rf6+ {[%clk 0:00:08.9]} 64. Ke5 {[%clk 0:00:08.2]} 64... Rg6 {[%clk 0:00:09.8]}
65. f4 {[%clk 0:00:08.6]} 65... Rh6 {[%clk 0:00:10.1]} 66. Qg5+ {[%clk
0:00:08.7]} 66... Rg6 {[%clk 0:00:11]} 67. Qe7+ {[%clk 0:00:09.3]} 67... Kh6
{[%clk 0:00:11.3]} 68. f5 {[%clk 0:00:08.8]} 68... Rg1 {[%clk 0:00:12]} 69. Qf8+
{[%clk 0:00:08.5]} 69... Kh7 {[%clk 0:00:12.2]} 70. Qf7+ {[%clk 0:00:09.1]}
70... Kh8 {[%clk 0:00:12.7]} 71. Qh5+ {[%clk 0:00:09.7]} 71... Kg8 {[%clk
0:00:12.9]} 72. f6 {[%clk 0:00:09.7]} 72... Re1+ {[%clk 0:00:12.9]} 73. Kd4
{[%clk 0:00:10.3]} 73... Rd1+ {[%clk 0:00:13.3]} 74. Qxd1 {[%clk 0:00:10]} 74...
Kh7 {[%clk 0:00:12.7]} 75. Qh5+ {[%clk 0:00:09.8]} 75... Kg8 {[%clk 0:00:13.6]}
76. Qg6+ {[%clk 0:00:10.3]} 76... Kh8 {[%clk 0:00:14.5]} 77. Qg7# {[%clk
0:00:10.7]} 1-0

[Event "Late-Titled-Tuesday-Blitz-August-29-2023"]
[Site "Chess.com"]
[Date "2023.08.29"]
[Round "7"]
[White "Alexander_Moskalenko"]
[Black "ahkashefi2800"]
[Result "1/2-1/2"]
[WhiteElo "2823"]
[BlackElo "2587"]
[TimeControl "180+1"]
[EndTime "15:18:26 PDT"]
[Termination "Game drawn by repetition"]

1. d4 {[%clk 0:03:00.9]} 1... d5 {[%clk 0:02:59.8]} 2. Nf3 {[%clk 0:02:59.2]}
2... c6 {[%clk 0:03:00.3]} 3. Bf4 {[%clk 0:02:59.8]} 3... Nf6 {[%clk 0:03:00.7]}
4. e3 {[%clk 0:03:00]} 4... Bf5 {[%clk 0:03:01.3]} 5. c4 {[%clk 0:03:00.2]} 5...
e6 {[%clk 0:03:01.8]} 6. Qb3 {[%clk 0:03:00.1]} 6... Qb6 {[%clk 0:03:00.8]} 7.
c5 {[%clk 0:03:00.3]} 7... Qxb3 {[%clk 0:03:01.3]} 8. axb3 {[%clk 0:03:01.2]}
8... Nbd7 {[%clk 0:03:01]} 9. b4 {[%clk 0:03:01.2]} 9... Bxb1 {[%clk 0:02:59.3]}
10. Rxb1 {[%clk 0:03:01.1]} 10... a6 {[%clk 0:02:57.9]} 11. Ra1 {[%clk
0:02:54.8]} 11... Rc8 {[%clk 0:02:58.4]} 12. h4 {[%clk 0:02:53.4]} 12... Be7
{[%clk 0:02:57.7]} 13. Nd2 {[%clk 0:02:52.4]} 13... O-O {[%clk 0:02:58.1]} 14.
Nb3 {[%clk 0:02:53]} 14... Bd8 {[%clk 0:02:56.2]} 15. Na5 {[%clk 0:02:53.5]}
15... Bxa5 {[%clk 0:02:56]} 16. bxa5 {[%clk 0:02:53.9]} 16... Rfe8 {[%clk
0:02:55]} 17. f3 {[%clk 0:02:44.1]} 17... e5 {[%clk 0:02:55.3]} 18. dxe5 {[%clk
0:02:45]} 18... Nxe5 {[%clk 0:02:55.4]} 19. h5 {[%clk 0:02:39.2]} 19... Rcd8
{[%clk 0:02:53.7]} 20. Rd1 {[%clk 0:02:27.5]} 20... Re7 {[%clk 0:02:33.6]} 21.
Kf2 {[%clk 0:02:17.6]} 21... Rde8 {[%clk 0:02:33.3]} 22. b4 {[%clk 0:02:07.4]}
22... h6 {[%clk 0:02:32.9]} 23. Be2 {[%clk 0:02:06.2]} 23... Nfd7 {[%clk
0:02:32.3]} 24. g4 {[%clk 0:02:04.3]} 24... f6 {[%clk 0:02:31.8]} 25. Rhe1
{[%clk 0:02:03.9]} 25... Nf7 {[%clk 0:02:28.8]} 26. Bf1 {[%clk 0:02:01]} 26...
Nde5 {[%clk 0:02:26.5]} 27. Be2 {[%clk 0:01:13.6]} 27... Ng5 {[%clk 0:02:26]}
28. Kg2 {[%clk 0:01:08.6]} 28... Ngf7 {[%clk 0:02:18.6]} 29. Bg3 {[%clk
0:01:03.6]} 29... Nd7 {[%clk 0:02:15.4]} 30. Bf2 {[%clk 0:00:56]} 30... Nde5
{[%clk 0:02:14.6]} 31. Bf1 {[%clk 0:00:53.7]} 31... Nd7 {[%clk 0:02:09.4]} 32.
Rd4 {[%clk 0:00:53.3]} 32... Nf8 {[%clk 0:02:09.1]} 33. Red1 {[%clk 0:00:51.8]}
33... Ne6 {[%clk 0:02:06.9]} 34. R4d2 {[%clk 0:00:51.5]} 34... Neg5 {[%clk
0:02:06.4]} 35. Be2 {[%clk 0:00:39]} 35... Kf8 {[%clk 0:02:06.2]} 36. Re1 {[%clk
0:00:36.8]} 36... Ne6 {[%clk 0:02:06]} 37. Bg3 {[%clk 0:00:36]} 37... Neg5
{[%clk 0:02:00.2]} 38. Bf2 {[%clk 0:00:36.2]} 38... Ne6 {[%clk 0:01:59.1]} 39.
Bd1 {[%clk 0:00:34.4]} 39... Nfg5 {[%clk 0:01:55.5]} 40. Bc2 {[%clk 0:00:34]}
40... Nf7 {[%clk 0:01:48.7]} 41. Bg6 {[%clk 0:00:32.8]} 41... Kg8 {[%clk
0:01:47.5]} 42. Bg3 {[%clk 0:00:33]} 42... Nf8 {[%clk 0:01:45.5]} 43. e4 {[%clk
0:00:07.5]} 43... Nxg6 {[%clk 0:01:41.2]} 44. hxg6 {[%clk 0:00:08.4]} 44... Ng5
{[%clk 0:01:41.2]} 45. exd5 {[%clk 0:00:04.3]} 45... Rxe1 {[%clk 0:01:39.5]} 46.
Bxe1 {[%clk 0:00:05.2]} 46... cxd5 {[%clk 0:01:35]} 47. Bg3 {[%clk 0:00:04.5]}
47... Rd8 {[%clk 0:01:30.7]} 48. Bd6 {[%clk 0:00:04.6]} 48... Ne6 {[%clk
0:01:28.3]} 49. f4 {[%clk 0:00:04.8]} 49... Re8 {[%clk 0:01:07.9]} 50. Rxd5
{[%clk 0:00:04]} 50... Rd8 {[%clk 0:01:07.8]} 51. Kf3 {[%clk 0:00:04.1]} 51...
Nc7 {[%clk 0:00:55.3]} 52. Rd3 {[%clk 0:00:04.3]} 52... Nb5 {[%clk 0:00:55.1]}
53. f5 {[%clk 0:00:04.7]} 53... Na7 {[%clk 0:00:47.3]} 54. Re3 {[%clk
0:00:02.7]} 54... Nc6 {[%clk 0:00:47.9]} 55. Re4 {[%clk 0:00:03.4]} 55... Rc8
{[%clk 0:00:46.3]} 56. Ke3 {[%clk 0:00:03.4]} 56... Rd8 {[%clk 0:00:46.4]} 57.
Kd3 {[%clk 0:00:04]} 57... Rc8 {[%clk 0:00:46.7]} 58. Kc4 {[%clk 0:00:04]} 58...
Rd8 {[%clk 0:00:46.2]} 59. Kb3 {[%clk 0:00:04.6]} 59... Rc8 {[%clk 0:00:46.2]}
60. Ka4 {[%clk 0:00:05.3]} 60... Ra8 {[%clk 0:00:46.4]} 61. Re2 {[%clk
0:00:04.9]} 61... Rd8 {[%clk 0:00:43.1]} 62. b5 {[%clk 0:00:04.6]} 62... axb5+
{[%clk 0:00:43.2]} 63. Ka3 {[%clk 0:00:04]} 63... Ra8 {[%clk 0:00:42.7]} 64. Kb2
{[%clk 0:00:03.2]} 64... Nxa5 {[%clk 0:00:42.8]} 65. Re7 {[%clk 0:00:03.2]}
65... b6 {[%clk 0:00:38]} 66. cxb6 {[%clk 0:00:01.2]} 66... Nc4+ {[%clk
0:00:38.2]} 67. Kb3 {[%clk 0:00:01.7]} 67... Nxd6 {[%clk 0:00:39.1]} 68. Rd7
{[%clk 0:00:01.9]} 68... Ne4 {[%clk 0:00:36.2]} 69. Kb4 {[%clk 0:00:02.5]} 69...
Kf8 {[%clk 0:00:25.7]} 70. b7 {[%clk 0:00:02.4]} 70... Rb8 {[%clk 0:00:17.7]}
71. Rf7+ {[%clk 0:00:03.1]} 71... Kg8 {[%clk 0:00:14.1]} 72. Rd7 {[%clk
0:00:03.8]} 72... Kf8 {[%clk 0:00:13.8]} 73. Kxb5 {[%clk 0:00:04.2]} 73... Rxb7+
{[%clk 0:00:07.2]} 74. Rxb7 {[%clk 0:00:03.2]} 74... Nd6+ {[%clk 0:00:08.1]} 75.
Kc6 {[%clk 0:00:03.8]} 75... Nxb7 {[%clk 0:00:09]} 76. Kxb7 {[%clk 0:00:04.7]}
76... Ke7 {[%clk 0:00:09.6]} 77. Kc7 {[%clk 0:00:05]} 77... Ke8 {[%clk
0:00:09.9]} 78. Kd6 {[%clk 0:00:05.2]} 78... Kd8 {[%clk 0:00:09.8]} 79. Ke6
{[%clk 0:00:05.6]} 79... Ke8 {[%clk 0:00:10.2]} 80. Kd6 {[%clk 0:00:05.9]} 80...
Kd8 {[%clk 0:00:10.7]} 81. Kc5 {[%clk 0:00:05.4]} 81... Kc7 {[%clk 0:00:10.7]}
82. Kd5 {[%clk 0:00:05.5]} 82... Kd7 {[%clk 0:00:10.6]} 83. Kc5 {[%clk
0:00:06.1]} 83... Kc7 {[%clk 0:00:11]} 84. Kd5 {[%clk 0:00:07]} 84... Kd7 {[%clk
0:00:11.3]} 85. Kc5 {[%clk 0:00:07.6]} 85... Kc7 {[%clk 0:00:07.9]} 1/2-1/2